Cogmind - Beta 14 @@@ ROGUE MODE // 2024.10.10 @ 19:28:18 Player: EgorIV Result: Destroyed by P-70 Sage with Tesla Rifle Performance ------------- Evolutions (6) 3000 Regions Visited (10) 2000 Robots Destroyed (13) 65 Value Destroyed (373) 373 Prototype IDs (9) 180 Alien Tech Used (0) 0 Bonus (1160) 1160 TOTAL SCORE: 6778 Bonus ------- Pacifist 470 Follower Combat Kills 190 Entered DSFs 500 Cogmind --------- Core Integrity 0/1150 Matter 106/300 Energy 87/100 System Corruption 2% Temperature Cool (0) Movement Core (50) Location -4/Factory Parts ------- > --- POWER (3) -------- (None) > --- PROPULSION (6) --- Gyrokinetic Inverter > --- UTILITY (6) ------ ECM Suite > --- WEAPON (4) ------- (None) > --- INVENTORY (5) ---- Light Fission Core Experimental Optical Array Advanced Sensor Array Hacking Suite Improved System Shield Peak State ------------ > --- POWER ------------ Enhanced Nuclear Core Enhanced Nuclear Core > --- PROPULSION ------- Gravmag System Improved Gravmag System Improved Gravmag System Gravmag Array > --- UTILITY ---------- Power Amplifier Improved Cryofiber Web Transmission Jammer Advanced ECM Suite Improved Hacking Suite Corruption Screen > --- WEAPON ----------- Gauss Rifle Mini Assault Cannon > --- INVENTORY -------- Fission Core Advanced Weight Redist. System Advanced Sensor Array Advanced Signal Interpreter [Rating: 71] Favorites ----------- Power Enhanced Nuclear Core Engine Light Deuterium Engine Power Core Enhanced Nuclear Core Propulsion VTOL Module Leg Improved Titanium Leg Wheel Wheel Hover Unit Gravmag System Flight Unit VTOL Module Utility Corruption Screen Device Reaction Control System Processor Corruption Screen Hackware Improved System Shield Weapon Chainsword Energy Gun Small Laser Energy Cannon Improved EM Pulse Cannon Ballistic Gun Gauss Rifle Ballistic Cannon Mini Assault Cannon Launcher Rocket Launcher Impact Weapon Flail Slashing Weapon Chainsword Build | -11 -10 -10 -9 -9 -8 -7 -6 -5 -5 -4 ------- Run | Yrd Mat Min Mat Min Mat Fac Fac Fac DSF Fac Slots Evolved 12 | . . . 2 . 2 2 2 2 . 2 Power 2 | . . . . . . . 1 . . 1 Propulsion 4 | . . . 1 . 1 1 . 1 . . Utility 4 | . . . 1 . 1 . 1 1 . . Weapon 2 | . . . . . . 1 . . . 1 Parts Attached 88 | 4 3 1 2 . 22 19 23 . 2 12 Power 15 | . 1 . . . 5 2 4 . . 3 Engine 6 | . 1 . . . 4 1 . . . . Core 9 | . . . . . 1 1 4 . . 3 Reactor . | . . . . . . . . . . . Propulsion 24 | 2 . 1 1 . 8 5 5 . . 2 Treads . | . . . . . . . . . . . Leg 3 | . . . . . . 3 . . . . Wheel 2 | 2 . . . . . . . . . . Hover 8 | . . . . . . 1 5 . . 2 Flight 11 | . . 1 1 . 8 1 . . . . Utility 28 | . 1 . 1 . 2 4 11 . 2 7 Device 23 | . . . 1 . 2 3 9 . 2 6 Storage . | . . . . . . . . . . . Processor 3 | . 1 . . . . 1 . . . 1 Hackware 2 | . . . . . . . 2 . . . Protection . | . . . . . . . . . . . Artifact . | . . . . . . . . . . . Weapon 21 | 2 1 . . . 7 8 3 . . . Energy Gun 4 | 2 . . . . . 1 1 . . . Energy Cannon 1 | . . . . . . 1 . . . . Ballistic Gun 11 | . 1 . . . 6 3 1 . . . Ballistic Cannon 2 | . . . . . . 1 1 . . . Launcher 1 | . . . . . 1 . . . . . Special Weapon . | . . . . . . . . . . . Impact Weapon 1 | . . . . . . 1 . . . . Slashing Weapon 1 | . . . . . . 1 . . . . Piercing Weapon . | . . . . . . . . . . . Special Melee Weapon . | . . . . . . . . . . . Unidentified Prototypes 7 | . . . . . 2 2 2 . . 1 Parts Lost 45 | . 4 1 1 1 12 6 7 . 9 4 Power 7 | . . . . . 2 1 1 . 2 1 Propulsion 21 | . 2 . . 1 7 3 3 . 4 1 Utility 9 | . . 1 . . 2 . 2 . 2 2 Weapon 8 | . 2 . 1 . 1 2 1 . 1 . Highest Loss Streak 9 | . 4 1 1 1 9 6 3 . 9 2 To Critical Strikes . | . . . . . . . . . . . Average Slot Usage (%) 43 | . 72 32 30 22 61 35 58 76 24 17 Engine 1 | . 12 2 . . 2 1 1 . . . Core 2 | . . . . . 3 . 7 11 2 2 Leg 1 | . . . . . . 5 . . . . Wheel 1 | . 23 . . . . . . . . . Hover 3 | . . . . . . 1 10 23 4 2 Flight 6 | . . 14 15 11 28 4 2 . . . Device 10 | . . . 11 11 13 8 19 17 9 6 Processor 4 | . 12 2 . . . 4 6 5 2 5 Hackware 1 | . . . . . . . 4 5 2 . Energy Gun 1 | . 22 . . . . . . . . . Ballistic Gun 2 | . 3 14 4 . 9 1 2 5 . . Slashing Weapon 1 | . . . . . . 2 1 . . . Peak Build Rating 71 | 4 6 4 3 3 34 28 68 68 71 26 Average Rating 20 | 2 5 2 2 2 21 15 41 68 25 16 On Entrance 16 | . 4 3 2 3 2 4 24 68 68 1 Naked Turns 29 | . . . . . . 1 . . 28 . Heaviest Build 30 | 3 8 1 2 1 20 12 29 29 30 14 Greatest Support 60 | 26 26 4 8 8 24 60 58 49 49 11 Greatest Overweight (x) 4 | . 1 . . . . 1 1 . 4 4 Average Overweight (x) . | . . . . . . . . . . . Largest Inventory Capacity 5 | 5 5 5 5 5 5 5 5 5 5 5 Average Capacity 5 | 5 5 5 5 5 5 5 5 5 5 5 Most Carried 5 | 3 3 1 4 4 5 5 5 5 4 5 Average Carried 3 | 2 1 . 2 3 4 4 4 5 4 2 Final Capacity 5 | 5 5 5 5 5 5 5 5 5 5 5 Final Carried 5 | 2 1 1 3 4 5 5 5 5 4 5 Class Distribution -------------------- 98% | Mutant Dominant Class ---------------- Mutant | -10/Materials Mutant | -10/Mines Mutant | -9/Materials Mutant | -9/Mines Mutant | -8/Materials Mutant | -7/Factory Mutant | -6/Factory Mutant | -5/Factory Mutant | -5/DSF Mutant | -4/Factory Resources | -11 -10 -10 -9 -9 -8 -7 -6 -5 -5 -4 ----------- Run | Yrd Mat Min Mat Min Mat Fac Fac Fac DSF Fac Matter Collected 718 | 224 . . . 15 95 265 9 . 55 55 Remotely . | . . . . . . . . . . . Salvage Created 324 | . . . . . 216 108 . . . . Parts 19 | . . . . . 13 6 . . . . Haulers Intercepted 2 | . . . . . 1 1 . . . . Recyclers Shooed . | . . . . . . . . . . . Parts Field Recycled . | . . . . . . . . . . . Retrieved Matter . | . . . . . . . . . . . Parts Self-Destructed . | . . . . . . . . . . . Prevented . | . . . . . . . . . . . Kills | -11 -10 -10 -9 -9 -8 -7 -6 -5 -5 -4 ------- Run | Yrd Mat Min Mat Min Mat Fac Fac Fac DSF Fac Combat Hostiles Destroyed 8 | . . . . . 6 2 . . . . Melee 1 | . . . . . . 1 . . . . Cannons 1 | . . . . . . 1 . . . . AOE 6 | . . . . . 6 . . . . . Classes Destroyed 8 | . . . . . 7 1 . . . . Builder 1 | . . . . . 1 . . . . . Hauler 2 | . . . . . 1 1 . . . . Recycler 1 | . . . . . 1 . . . . . Watcher 1 | . . . . . 1 . . . . . Swarmer 2 | . . . . . . 2 . . . . Grunt 4 | . . . . . 4 . . . . . Brawler 1 | . . . . . 1 . . . . . Sentry 1 | . . . . . 1 . . . . . Best Kill Streak 10 | . . . . . 10 1 . . . . Combat Bots Only 6 | . . . . . 6 1 . . . . Max Kills in Single Turn 3 | . . . . . 3 1 . . . . Gunslinging . | . . . . . . . . . . . Exploded 2 | . . . . . 2 . . . . . Melee 1 | . . . . . . 1 . . . . Uniques/NPCs Destroyed . | . . . . . . . . . . . Combat | -11 -10 -10 -9 -9 -8 -7 -6 -5 -5 -4 -------- Run | Yrd Mat Min Mat Min Mat Fac Fac Fac DSF Fac Hostile Shots Fired 522 | . 44 5 26 4 52 129 97 . 58 107 Missed 206 | . 10 2 15 1 22 57 42 . 15 42 Damage Taken 6352 | 2 458 33 89 38 723 1072 1282 . 1263 1392 Core 3185 | 1 97 23 39 21 176 249 512 . 904 1163 Absorbed by Shields 111 | . . . . . . . . . 111 . Core Remaining (%) 59 | 99 . 51 . 85 68 64 39 . 9 . Volleys Fired 29 | . 8 . . . 16 4 1 . . . Largest 2 | . 2 . . . 2 1 1 . . . Hottest 90 | . 90 . . . 56 69 28 . . . Shots Fired 40 | . 14 . . . 21 4 1 . . . Gun 26 | . 14 . . . 10 1 1 . . . Cannon 3 | . . . . . . 3 . . . . Launcher 11 | . . . . . 11 . . . . . Special . | . . . . . . . . . . . Kinetic 14 | . 2 . . . 10 1 1 . . . Thermal 12 | . 12 . . . . . . . . . Explosive 11 | . . . . . 11 . . . . . Electromagnetic 3 | . . . . . . 3 . . . . Robot Hit Streak 4 | . 3 . . . 4 1 . . . . Robot Miss Streak 11 | . 3 . . . 11 4 3 . . . Penetration Max . | . . . . . . . . . . . Secondary Targets . | . . . . . . . . . . . Shots Hit Robots 22 | . 6 . . . 12 4 . . . . Core Hits 47 | . 1 . . . 30 7 . . . 9 Critical Kills 1 | . . . . . . 1 . . . . Critical Parts Destroyed . | . . . . . . . . . . . Critical Strikes 1 | . . . . . . 1 . . . . Smash 1 | . . . . . . 1 . . . . Melee Attacks 5 | . . . . . . 5 . . . . Impact 5 | . . . . . . 5 . . . . Slashing . | . . . . . . . . . . . Piercing . | . . . . . . . . . . . Sneak Attacks 1 | . . . . . . 1 . . . . Combat Hostiles . | . . . . . . . . . . . Follow-up Attacks . | . . . . . . . . . . . Damage Inflicted 1399 | 7 95 . . . 991 244 5 . . 57 Guns 172 | . 67 . . . 105 . . . . . Cannons 51 | . . . . . . 51 . . . . Explosions 886 | . . . . . 886 . . . . . Melee 168 | . . . . . . 168 . . . . Ramming 122 | 7 28 . . . . 25 5 . . 57 Kinetic 115 | . 10 . . . 105 . . . . . Thermal 57 | . 57 . . . . . . . . . Explosive 886 | . . . . . 886 . . . . . Electromagnetic 51 | . . . . . . 51 . . . . Impact 168 | . . . . . . 168 . . . . Slashing . | . . . . . . . . . . . Piercing . | . . . . . . . . . . . Highest Corruption 2 | . 1 1 . . . . . . . 2 Average Corruption 1 | . 1 1 . . . . . . . 1 Corruption Purged . | . . . . . . . . . . . Corruption Blocked 2 | . . . . . . . 2 . . . Effects 2 | . . . . . . . . . . 2 Message Errors 1 | . . . . . . . . . . 1 Energy Discharges 1 | . . . . . . . . . . 1 Overload Shots . | . . . . . . . . . . . Overflow Damage 101 | . . . . . 22 79 . . . . Projectiles . | . . . . . . . . . . . Explosions 22 | . . . . . 22 . . . . . Melee 79 | . . . . . . 79 . . . . Knockbacks 1 | . . . . . . . . . . 1 Impact 1 | . . . . . . . . . . 1 Kinetic . | . . . . . . . . . . . Secondary . | . . . . . . . . . . . Self-Inflicted Damage 61 | 2 11 . . . 13 8 2 . . 25 Shots 1 | . . . . . 1 . . . . . Rammed 43 | 5 13 . . . . 9 1 . . 15 Targets Rammed 44 | 5 13 . . . . 10 1 . . 15 Kicked 1 | . . . . . . 1 . . . . Crushed . | . . . . . . . . . . . Highest Temperature 250 | . 250 . . . 75 14 . . . 1 Average Temperature 64 | . 135 . . . 19 10 . . . 1 Received Heat Transfer 763 | . 279 18 . 21 144 63 18 . . 220 Effects 1 | . 1 . . . . . . . . . Energy Bleed 1 | . 1 . . . . . . . . . Siege Activations . | . . . . . . . . . . . Robots Corrupted 1 | . . . . . . 1 . . . . Combat Hostiles . | . . . . . . . . . . . Parts Fried 1 | . . . . . . 1 . . . . Impact Corruptions 1 | . . . . . . 1 . . . . Robots Melted . | . . . . . . . . . . . Combat Hostiles . | . . . . . . . . . . . Parts Melted . | . . . . . . . . . . . Heat Transferred 149 | . 149 . . . . . . . . . Parts Sabotaged . | . . . . . . . . . . . Parts Stolen . | . . . . . . . . . . . Parts Stripped . | . . . . . . . . . . . Power Chain Reactions . | . . . . . . . . . . . Alert | -11 -10 -10 -9 -9 -8 -7 -6 -5 -5 -4 ------- Run | Yrd Mat Min Mat Min Mat Fac Fac Fac DSF Fac Peak Influence 317 | . 41 30 35 84 311 317 130 23 30 125 Initial 105 | . . 6 11 13 32 105 86 23 18 15 Average 89 | . 15 14 25 56 139 167 61 23 14 57 Maximum Alert Level 1 | . . . . . 1 1 . . . . Low Security (%) 87 | 100 100 100 100 100 68 67 100 100 100 100 Level 1 12 | . . . . . 31 32 . . . . Level 2 . | . . . . . . . . . . . Level 3 . | . . . . . . . . . . . Level 4 . | . . . . . . . . . . . Level 5 . | . . . . . . . . . . . High Security . | . . . . . . . . . . . Max Security . | . . . . . . . . . . . Squads Dispatched 14 | . 1 . . . 2 3 6 . 1 1 Investigation 6 | . 1 . . . . 1 4 . . . Extermination 1 | . . . . . . . . . . 1 Reinforcement 7 | . . . . . 2 2 2 . 1 . Assault . | . . . . . . . . . . . Garrison . | . . . . . . . . . . . Intercept . | . . . . . . . . . . . Searches Triggered . | . . . . . . . . . . . Construction Impeded . | . . . . . . . . . . . Haulers Reinforced 1 | . . . . . . 1 . . . . Active Scanning Responses . | . . . . . . . . . . . Cargo Convoy Interrupts . | . . . . . . . . . . . Stealth | -11 -10 -10 -9 -9 -8 -7 -6 -5 -5 -4 --------- Run | Yrd Mat Min Mat Min Mat Fac Fac Fac DSF Fac Distress Signals 1 | . 1 . . . . . . . . . Communications Jammed . | . . . . . . . . . . . Distress Signals . | . . . . . . . . . . . Times Spotted 103 | . 6 3 5 3 18 22 19 . 8 19 Peak Tracking Total 12 | . 8 2 5 3 6 7 6 . 6 12 Tactical Retreats 19 | . 1 1 . . 1 4 6 . 2 4 Traps | -11 -10 -10 -9 -9 -8 -7 -6 -5 -5 -4 ------- Run | Yrd Mat Min Mat Min Mat Fac Fac Fac DSF Fac Traps Triggered 7 | . 1 . . . . . 2 . 2 2 Indirectly . | . . . . . . . . . . . Trap Hack Attempts . | . . . . . . . . . . . Triggered . | . . . . . . . . . . . Disarmed . | . . . . . . . . . . . Reprogrammed . | . . . . . . . . . . . Reused . | . . . . . . . . . . . Traps Extracted . | . . . . . . . . . . . Installed . | . . . . . . . . . . . Triggered . | . . . . . . . . . . . Machines | -11 -10 -10 -9 -9 -8 -7 -6 -5 -5 -4 ---------- Run | Yrd Mat Min Mat Min Mat Fac Fac Fac DSF Fac Machines Disabled 1 | . . . . . 1 . . . . . Max in Single Turn 1 | . . . . . 1 . . . . . Machines Repaired . | . . . . . . . . . . . Machines Dismantled . | . . . . . . . . . . . Machines Sabotaged . | . . . . . . . . . . . Overloaded Fab Kills . | . . . . . . . . . . . Hacking | -11 -10 -10 -9 -9 -8 -7 -6 -5 -5 -4 --------- Run | Yrd Mat Min Mat Min Mat Fac Fac Fac DSF Fac Machines Accessed 19 | . 2 . 2 . 3 2 9 1 . . Terminals 18 | . 2 . 2 . 2 2 9 1 . . Fabricators . | . . . . . . . . . . . Repair Stations 1 | . . . . . 1 . . . . . Recycling Units . | . . . . . . . . . . . Scanalyzers . | . . . . . . . . . . . Garrison Access . | . . . . . . . . . . . Total Hacks 49 | . 5 . 4 . 8 4 27 1 . . Successful 23 | . 2 . 2 . 4 1 13 1 . . Failed 25 | . 3 . 2 . 4 3 13 . . . Catastrophic 3 | . . . . . . 1 2 . . . Database Lockouts 1 | . . . . . . . 1 . . . Manual 13 | . 2 . . . 1 1 9 . . . Terminals 46 | . 5 . 4 . 5 4 27 1 . . Fabricators . | . . . . . . . . . . . Repair Stations 3 | . . . . . 3 . . . . . Recycling Units . | . . . . . . . . . . . Scanalyzers . | . . . . . . . . . . . Garrison Access . | . . . . . . . . . . . Terminal Hacks 21 | . 2 . 2 . 2 1 13 1 . . Record 11 | . . . . . 1 . 10 . . . Robot Analysis 2 | . 1 . 1 . . . . . . . Prototype ID Bank 1 | . . . . . . . 1 . . . Open DSF 2 | . . . . . . 1 . 1 . . Alert Level 1 | . . . 1 . . . . . . . Unreport Threat 1 | . . . . . . . 1 . . . Maintenance Status 1 | . . . . . . . 1 . . . Security Status 1 | . 1 . . . . . . . . . Surveillance Status 1 | . . . . . 1 . . . . . Fabricator Hacks . | . . . . . . . . . . . Repair Station Hacks 2 | . . . . . 2 . . . . . Scan Component 1 | . . . . . 1 . . . . . Repair 1 | . . . . . 1 . . . . . Recycling Unit Hacks . | . . . . . . . . . . . Scanalyzer . | . . . . . . . . . . . Garrison Access Hacks . | . . . . . . . . . . . Unauthorized Hacks . | . . . . . . . . . . . Terminals . | . . . . . . . . . . . Fabricators . | . . . . . . . . . . . Repair Stations . | . . . . . . . . . . . Recycling Units . | . . . . . . . . . . . Scanalyzers . | . . . . . . . . . . . Garrison Access . | . . . . . . . . . . . Data Cores Recovered . | . . . . . . . . . . . Used . | . . . . . . . . . . . Hacking Detections 12 | . 2 . 1 . 1 1 7 . . . Full Trace Events 5 | . . . . . . 1 4 . . . Feedback Events 2 | . . . . . . . 2 . . . Corruption 2 | . . . . . . . 2 . . . Feedback Blocked . | . . . . . . . . . . . Robot Schematics Acquired . | . . . . . . . . . . . Robots Built . | . . . . . . . . . . . Authchips . | . . . . . . . . . . . Time . | . . . . . . . . . . . Total Robot Build Rating . | . . . . . . . . . . . Part Schematics Acquired . | . . . . . . . . . . . Parts Built . | . . . . . . . . . . . Authchips . | . . . . . . . . . . . Time . | . . . . . . . . . . . Total Part Build Rating . | . . . . . . . . . . . Parts Repaired . | . . . . . . . . . . . Time 44 | . . . . . 44 . . . . . Parts Recycled . | . . . . . . . . . . . Recycled Matter . | . . . . . . . . . . . Retrieved Matter . | . . . . . . . . . . . Retrieved Components . | . . . . . . . . . . . Parts Scanalyzed . | . . . . . . . . . . . Part Schematics Acquired . | . . . . . . . . . . . Parts Damaged . | . . . . . . . . . . . Bothacking | -11 -10 -10 -9 -9 -8 -7 -6 -5 -5 -4 ------------ Run | Yrd Mat Min Mat Min Mat Fac Fac Fac DSF Fac Used RIF Installer . | . . . . . . . . . . . Robots Hacked . | . . . . . . . . . . . Non-combat . | . . . . . . . . . . . Combat . | . . . . . . . . . . . Robot Hacks Applied . | . . . . . . . . . . . Relay Couplers Released . | . . . . . . . . . . . Fabnet Peak Effective % . | . . . . . . . . . . . Robots Rewired . | . . . . . . . . . . . Allies Hacked . | . . . . . . . . . . . Hacks Repelled . | . . . . . . . . . . . Allies | -11 -10 -10 -9 -9 -8 -7 -6 -5 -5 -4 -------- Run | Yrd Mat Min Mat Min Mat Fac Fac Fac DSF Fac Total Allies 3 | . . . . 3 . . . . . . Largest Group 3 | . . . . 3 3 . . . . . Highest-Rated Group 40 | . . . . 40 40 . . . . . Highest-Rated Ally 16 | . . . . 16 16 . . . . . Total Orders 4 | . . . . 4 . . . . . . GUARD 2 | . . . . 2 . . . . . . AID 2 | . . . . 2 . . . . . . Ally Attacks 41 | . . . . 17 24 . . . . . Total Damage 372 | . . . . 126 246 . . . . . Kills 7 | . . . . 3 4 . . . . . Allies Corrupted . | . . . . . . . . . . . Allies Melted . | . . . . . . . . . . . Intel | -11 -10 -10 -9 -9 -8 -7 -6 -5 -5 -4 ------- Run | Yrd Mat Min Mat Min Mat Fac Fac Fac DSF Fac Robot Analysis Total 2 | . 1 . 1 . . . . . . . Derelict Logs Recovered . | . . . . . . . . . . . Drone Launches . | . . . . . . . . . . . Drone Recoveries . | . . . . . . . . . . . Exploration | -11 -10 -10 -9 -9 -8 -7 -6 -5 -5 -4 ------------- Run | Yrd Mat Min Mat Min Mat Fac Fac Fac DSF Fac Turns Passed 2025 | 68 140 62 54 46 201 579 498 1 75 301 Spaces Moved 3167 | 61 95 151 123 71 290 974 936 3 116 347 Core 476 | 5 19 . . . 2 98 63 . 72 217 Treads . | . . . . . . . . . . . Legs 56 | . . . . . . 56 . . . . Wheels 132 | 56 76 . . . . . . . . . Hover 758 | . . . . . . 152 429 3 44 130 Flight 1745 | . . 151 123 71 288 668 444 . . . Fastest Speed 29 | 50 90 40 37 37 29 35 35 48 48 40 Average Speed 49 | 86 92 40 38 39 34 45 46 48 51 74 Slowest Speed 250 | 90 100 40 40 40 50 130 110 48 100 250 Overloaded Moves . | . . . . . . . . . . . Propulsion Burnouts . | . . . . . . . . . . . Robots Hopped 14 | . . 3 3 2 2 4 . . . . Cave-ins Triggered . | . . . . . . . . . . . Exploration Rate (%) 24 | 4 15 43 16 10 24 29 27 1 90 8 Regions Visited 10 Branch Regions 2 Pre-discovered Areas . | . . . . . . . . . . . Known Exits Taken 1 | . . . . . . . . 1 . . Unknown Exits Taken 8 | 1 1 1 1 1 1 1 1 . . . Scrap Searched . | . . . . . . . . . . . Spaces Dug . | . . . . . . . . . . . Terrain Destroyed 50 | . . . . . 50 . . . . . Melee . | . . . . . . . . . . . Projectile . | . . . . . . . . . . . AOE 50 | . . . . . 50 . . . . . Terrain Rammed . | . . . . . . . . . . . Walls Destroyed . | . . . . . . . . . . . Machines Disabled . | . . . . . . . . . . . Actions | -11 -10 -10 -9 -9 -8 -7 -6 -5 -5 -4 --------- Run | Yrd Mat Min Mat Min Mat Fac Fac Fac DSF Fac Total 3535 | 75 134 149 125 86 365 1087 989 2 130 393 Wait 131 | . 14 . . 17 19 65 13 . 1 2 Move 3129 | 60 94 144 116 66 285 965 935 2 115 347 Hop 14 | . . 3 3 2 2 4 . . . . Pick Up 57 | 6 2 . 4 1 13 9 9 . . 13 Fast Attach 26 | . . . . . 9 7 10 . . . Attach 52 | 4 3 1 2 . 10 10 9 . 1 12 Detach 5 | . . 1 . . . 2 1 . . 1 Swap 10 | . . . . . 3 2 4 . 1 . Drop 21 | . . . . . 8 4 6 . . 3 Fire 29 | . 8 . . . 16 4 1 . . . Melee 5 | . . . . . . 5 . . . . Ram 43 | 5 13 . . . . 9 1 . . 15 Kick 1 | . . . . . . 1 . . . . Crush . | . . . . . . . . . . . Escape Stasis 11 | . . . . . . . . . 11 . Rewire 1 | . . . . . . . . . 1 . Trap . | . . . . . . . . . . . Miscellaneous . | . . . . . . . . . . . Route ------- -11/Scrapyard -10/Materials -10/Mines -9/Materials -9/Mines -8/Materials -7/Factory -6/Factory -5/Factory -5/DSF -4/Factory History --------- Turn | Location | Event 10 | -11/Scrapyard | Discovered new exit (range 15) 69 | -11/Scrapyard | Entered Materials 202 | -10/Materials | Discovered new exit (range 8) 209 | -10/Materials | Entered Mines 211 | -10/Mines | Lost 4 parts (2n2w) 267 | -10/Mines | Discovered new exit (range 5) 271 | -10/Mines | Entered Materials 271 | -9/Materials | Evolved 2 slots: Propulsion x1, Utility x1 287 | -9/Materials | Discovered new exit (range 15) 300 | -9/Materials | Build established: Mutant 325 | -9/Materials | Entered Mines 332 | -9/Mines | Assisted by bots powering up and referring to "LRC-V3" 359 | -9/Mines | Discovered new exit (range 6) 371 | -9/Mines | Entered Materials 371 | -8/Materials | Accompanied by 3 allies 371 | -8/Materials | Evolved 2 slots: Propulsion x1, Utility x1 543 | -8/Materials | Lost 3 parts (2p1u) 553 | -8/Materials | Discovered new exit (range 10) 572 | -8/Materials | Entered Factory 572 | -7/Factory | Evolved 2 slots: Propulsion x1, Weapon x1 603 | -7/Factory | Lost 9 parts (7n1u1w) 794 | -7/Factory | Lost 6 parts (1p3n2w) 1105 | -7/Factory | Discovered new exit (range 15) 1151 | -7/Factory | Entered another Factory area 1151 | -6/Factory | Evolved 2 slots: Power x1, Utility x1 1308 | -6/Factory | Central database locked down 1316 | -6/Factory | Lost 3 parts (1p1n1w) 1563 | -6/Factory | Core integrity fell below 50% 1639 | -6/Factory | Discovered new exit (range 7) 1649 | -6/Factory | Entered another Factory area 1649 | -5/Factory | Evolved 2 slots: Propulsion x1, Utility x1 1650 | -5/Factory | Identified exit to DSF 1650 | -5/Factory | Entered DSF 1673 | -5/DSF | Additional patrols routed to DSF 1700 | -5/DSF | Core integrity fell below 50% 1715 | -5/DSF | Core integrity fell below 20% 1719 | -5/DSF | Discovered new exit (range 14) 1720 | -5/DSF | Lost 9 parts (2p4n2u1w) 1725 | -5/DSF | Entered Factory 1725 | -4/Factory | Evolved 2 slots: Power x1, Weapon x1 1935 | -4/Factory | Found Quantum Capacitor 1973 | -4/Factory | Core integrity fell below 50% 1996 | -4/Factory | Core integrity fell below 20% 2026 | -4/Factory | Destroyed by P-70 Sage with Tesla Rifle Last Messages --------------- Acquired 1 matter. Acquired 3 matter. Acquired 2 matter. Acquired 6 matter. Acquired 1 matter. K-01 Serf collects debris. 7UDL:U:RKXNO7 SL/CN|3MK2YD K-01 Serf collects debris. Slammed into K-01 Serf. Gyrokinetic Inverter broken. Destabilizing: Short circuit. K-01 Serf collects debris. Slammed into K-01 Serf. Destabilizing: System interference. ECM Suite temporarily disabled. Broken Adv. Signal Interpreter destroyed. Slammed into P-70 Sage. P-70 Sage knocked back. Slammed into P-70 Sage. Destabilizing: Core damaged (-34). Map ----- +----------------------------------------------------+ | | | | | | | | | | | | | | | | | | | | | | | | | | | | | | | ?????????????????????????????????????????????????? | | ??????????????????????########???????????????????? | | ??????????????????????# ! #???????????????????? | | ?????????????????###### #???????????????????? | | ?????????????????# + """ #???????????????????? | | ?????????????????# # """ #???????????????????? | | ?????????????????# # """ #???????????????????? | | ?????????????????# / #???????????????????? | | ?????????????????# ####s###???????????????????? | | #######+########## ### ######???????????????? | | A p@ p u????????? | | ##### ######### #######??????????????? | | #???# #???????#####????????????????????? | | " ????# #????????????????????????????????? | | " ???????# #????????????????????????????????? | | " ###/########+#????????????????????????????????? | | # #????????????????????????????????? | | " # #????????????????????????????????? | | " # #????????????????????????????????? | | " / #????????????????????????????????? | | # #????????????????????????????????? | | # #????????????????????????????????? | | # #????????????????????????????????? | | # #????????????????????????????????? | | # #????????????????????????????????? | | # #????????????????????????????????? | | # #????????????????????????????????? | | # #????????????????????????????????? | | ##############????????????????????????????????? | | ## #?????????????????????????????????????????????? | | ?? ??????????????????????????????????????????????? | | ??+??????????????????????????????????????????????? | | ?????????????????????????????????????????????????? | | ?????????????????????????????????????????????????? | | ?????????????????????????????????????????????????? | +----------------------------------------------------+ Best States ------------- Heat Dissipation 43 Energy Generation 36 Energy Capacity 520 Matter Stores 300 Matter Capacity 300 Sight Range 16 Robot Scan Range 16 Terrain Scan Range 16 Terrain Scan Density 10 ECM Strength 2 Jamming Range 12 Power Amplification 20 Additional Mass Support 9 Base Temperature (-) 150 Corruption Block 8 Evasion (%) 71 Targeting Accuracy 5 Offensive Hacking 12 Defensive Hacking 12 Item Schematics ----------------- None Robot Schematics ------------------ None Fabricated ------------ Nothing Alien Tech Used ----------------- None Achievements -------------- None Challenges ------------ None Game ------ Seed CatalystGlidesysCyclogen Manual? 0 Play Time 01:15:59 Cumulative 27.6 hours Start 2024.10.10 @ 18:11:28 End 2024.10.10 @ 19:28:18 Sessions 1 Manual Loads 0 Difficulty Rogue Special Mode None Game No. 13 Rogue 6 Adventurer 7 Explorer 0 Win Type - Total 0 Types 0/0/0/0/0/0/0/0/0 Lore% 9 Gallery% 24 Achievement% 22 Wizard Run 0 Options --------- Layout 1 ASCII 0 Keyboard 0 Movement Mouse Keybinds 0 Fullscreen 1 Font 32/SmallcapsGlow Map View 50x40 Zoom Use 0% Tactical HUD 0 Map Filters NONE Filters NONE Steam 0 RUN: 5cb63f32-5d08-493a-8738-d28bc3b1eedd